bitfinex/quotes_SOLUSD_20230112
["timestamp","ask_amount","ask_price","bid_price","bid_amount"]
[1673482837428,17.96,16.252,16.239,20.0]
[1673482837644,112.3338,16.253,16.24,0.96]
[1673482837855,66.15,16.259,16.241,0.96]
[1673482838070,116.2611,16.258,16.242,0.96]
[1673482838269,116.2611,16.258,16.243,0.96]
[1673482838474,46.15,16.257,16.243,0.96]
[1673482838683,46.15,16.257,16.243,19.14496728]
[1673482838893,116.2611,16.258,16.241,39.14496728]
[1673482839105,116.2611,16.258,16.242,0.96]
[1673482839315,116.2611,16.258,16.243,0.96]
[1673482839525,46.14,16.261,16.243,20.10496728]
[1673482839746,116.3281,16.263,16.25,23.99]
[1673482839952,116.3281,16.263,16.251,46.17]
[1673482840166,116.3281,16.263,16.252,20.0]
[1673482840588,116.3281,16.263,16.251,20.0]
[1673482840796,20.0,16.262,16.251,20.0]
[1673482841016,66.14,16.262,16.242,46.19]
[1673482841218,66.14,16.262,16.23,96.09]
[1673482841219,23.96,16.26,16.23,119.9]
[1673482841441,193.8469,16.259,16.23,119.9]
[1673482841649,20.0,16.258,16.23,119.9]
[1673482841862,64.11,16.257,16.234,46.22]
[1673482842804,64.11,16.257,16.238,21.92]
[1673482843003,64.11,16.257,16.238,1.92]
[1673482843525,64.11,16.257,16.238,21.06496728]
[1673482843741,64.11,16.257,16.239,20.0]
[1673482843946,64.11,16.257,16.24,1.92]
[1673482844165,64.11,16.257,16.24,21.92]
[1673482844377,64.11,16.257,16.24,41.06496728]
[1673482845007,64.11,16.257,16.24,40.56496728]
[1673482845412,0.96,16.256,16.24,40.10496728]
[1673482845634,0.96,16.255,16.24,40.10496728]
[1673482845843,0.96,16.254,16.24,40.10496728]
[1673482846056,0.96,16.254,16.24,20.0]
[1673482846257,0.96,16.253,16.24,20.0]
[1673482846678,0.96,16.253,16.238,20.0]
[1673482847007,17.96,16.253,16.238,20.0]
[1673482847210,17.96,16.253,16.234,19.14496728]
[1673482847211,20.0,16.252,16.234,19.14496728]
[1673482847417,20.0,16.252,16.227,46.24]
[1673482847418,23.95,16.25,16.227,46.24]
[1673482847627,20.0,16.248,16.231,39.14496728]
[1673482847834,18.92,16.247,16.231,39.14496728]
[1673482848265,65.1,16.247,16.231,39.14496728]
[1673482848478,65.1,16.247,16.231,19.14496728]
[1673482848685,20.0,16.246,16.231,18.64496728]
[1673482848885,17.0,16.245,16.232,20.0]
[1673482849091,129.2781,16.245,16.232,20.0]
[1673482849305,129.2781,16.245,16.232,39.14496728]
[1673482849515,129.2781,16.245,16.232,20.0]
[1673482849734,129.2781,16.245,16.232,19.14496728]
[1673482850707,20.0,16.244,16.232,19.14496728]
[1673482850899,18.92,16.243,16.23,20.0]
[1673482851231,18.92,16.243,16.228,20.0]
[1673482851442,18.92,16.243,16.227,46.24]
[1673482851631,18.92,16.243,16.231,19.14496728]
[1673482851848,18.92,16.243,16.227,46.24]
[1673482852174,18.92,16.243,16.228,20.0]
[1673482853007,18.92,16.243,16.228,19.5]
[1673482854059,112.2781,16.245,16.229,65.37496728]
[1673482854271,112.2781,16.245,16.23,20.0]
[1673482854598,112.2781,16.245,16.231,46.23]
[1673482854788,112.2781,16.245,16.232,20.0]
[1673482855121,112.2781,16.245,16.232,39.14496728]
[1673482855437,18.92,16.244,16.232,20.0]
[1673482855632,20.0,16.243,16.226,20.0]
[1673482855952,18.92,16.242,16.223,20.0]
[1673482856172,18.92,16.242,16.224,46.25]
[1673482856486,1.92,16.242,16.225,20.0]
[1673482857012,1.92,16.242,16.227,20.0]
[1673482857203,1.92,16.242,16.228,21.92]
[1673482858146,1.92,16.242,16.228,20.0]
[1673482859422,112.2781,16.245,16.229,20.96]
[1673482859631,112.2781,16.245,16.23,20.96]
[1673482859954,112.2781,16.245,16.23,20.0]
[1673482860792,18.92,16.244,16.23,20.0]
[1673482861733,112.2781,16.245,16.23,20.0]
[1673482862683,112.2781,16.245,16.229,20.0]
[1673482863114,17.0,16.244,16.229,20.0]
[1673482863335,0.96,16.243,16.229,20.0]
[1673482863529,0.96,16.243,16.229,40.0]
[1673482863738,17.0,16.244,16.23,1.92]
[1673482863945,1.92,16.243,16.229,40.0]
[1673482864167,112.2781,16.245,16.231,0.96]
[1673482864365,112.2781,16.245,16.23,65.15]
[1673482864576,112.2781,16.245,16.231,40.0]
[1673482864910,112.2781,16.245,16.232,48.14]
[1673482865121,112.2781,16.245,16.233,20.0]
[1673482865428,46.17,16.251,16.233,20.0]
[1673482865429,112.2781,16.254,16.235,20.76329602]
[1673482865645,112.2781,16.254,16.236,66.21]
[1673482865832,112.2781,16.254,16.237,17.96]
[1673482866048,112.2781,16.254,16.238,46.21]
[1673482866258,112.2781,16.254,16.24,23.79]
[1673482866578,112.2781,16.254,16.242,20.0]
[1673482866778,109.0737,16.259,16.243,1.92]
[1673482866992,109.0737,16.259,16.243,18.92]
[1673482867201,109.0737,16.259,16.243,65.11]
[1673482867431,46.13,16.266,16.244,20.0]
[1673482867742,46.13,16.266,16.245,85.11]
[1673482867743,119.7952,16.265,16.245,85.11]
[1673482868148,46.13,16.264,16.246,20.0]
[1673482868691,46.13,16.264,16.247,20.0]
[1673482869407,46.13,16.264,16.248,1.92]
[1673482870058,46.13,16.264,16.247,20.0]
[1673482870372,46.13,16.264,16.248,18.92]
[1673482870577,119.7952,16.265,16.25,20.0]
[1673482870900,119.7952,16.265,16.251,20.0]
[1673482871741,46.12,16.269,16.251,20.0]
[1673482871927,116.1442,16.268,16.252,1.92]
[1673482872137,116.1442,16.268,16.251,66.17]
[1673482872353,116.1442,16.268,16.251,20.0]
[1673482872979,17.96,16.267,16.251,20.0]
[1673482873635,0.96,16.266,16.251,20.0]
[1673482873847,0.96,16.265,16.251,20.0]
[1673482874243,64.09,16.265,16.247,20.0]
[1673482874787,17.96,16.265,16.247,20.0]
[1673482874987,17.0,16.266,16.247,20.0]
[1673482875201,48.05,16.265,16.248,46.18]
[1673482875407,17.0,16.264,16.249,21.92]
[1673482875631,17.0,16.264,16.25,20.0]
[1673482875824,17.0,16.264,16.251,1.92]
[1673482876037,17.0,16.264,16.251,0.96]
[1673482876257,17.0,16.264,16.252,0.96]
[1673482878453,0.96,16.263,16.249,20.0]
[1673482878667,0.96,16.262,16.249,20.0]
[1673482879094,17.96,16.262,16.249,20.0]
[1673482879301,17.0,16.262,16.249,20.0]
[1673482879824,17.0,16.262,16.25,21.92]
[1673482880030,46.12,16.267,16.251,37.0]
[1673482880241,116.1442,16.268,16.252,21.92]
[1673482881407,17.0,16.267,16.252,1.92]
[1673482881816,1.92,16.266,16.251,85.31496728]
[1673482882126,21.92,16.266,16.251,20.0]
[1673482882342,17.0,16.265,16.251,20.0]
[1673482882567,20.96,16.264,16.25,20.0]
[1673482882773,64.1,16.263,16.248,20.0]
[1673482882994,0.96,16.262,16.247,20.0]
[1673482883603,0.96,16.262,16.247,39.14496728]
[1673482883814,0.96,16.262,16.248,1.92]
[1673482884276,118.9204,16.263,16.248,1.92]
[1673482884467,118.9204,16.263,16.249,19.14496728]
[1673482884770,118.9204,16.263,16.25,21.92]
[1673482885195,118.9204,16.263,16.251,20.0]
[1673482885600,46.12,16.267,16.252,19.14496728]
[1673482885812,46.1,16.276,16.253,17.96]
[1673482886021,46.11,16.271,16.254,0.96]
[1673482886232,46.11,16.271,16.255,0.96]
[1673482886443,46.11,16.271,16.256,0.96]
[1673482886653,46.11,16.271,16.252,19.14496728]
[1673482886858,18.92,16.267,16.251,20.0]
[1673482888333,46.11,16.271,16.252,18.92]
[1673482888552,46.11,16.271,16.253,66.16]
[1673482888754,118.64,16.273,16.254,18.92]
[1673482888961,118.64,16.273,16.255,86.16]
[1673482889170,118.64,16.273,16.256,18.92]
[1673482889400,118.64,16.273,16.257,40.0]
[1673482889923,17.0,16.271,16.257,20.0]
[1673482890141,17.0,16.271,16.256,40.0]
[1673482890326,17.0,16.271,16.257,1.92]
[1673482890754,17.0,16.271,16.256,40.0]
[1673482891174,17.0,16.271,16.257,1.92]
[1673482891400,17.0,16.271,16.257,18.92]
[1673482891619,118.64,16.273,16.259,20.0]
[1673482892119,118.64,16.273,16.26,20.0]
[1673482892957,17.0,16.271,16.26,20.0]
[1673482893608,46.1,16.275,16.26,20.0]
[1673482893806,112.3385,16.277,16.262,20.0]
[1673482894016,20.0,16.276,16.263,0.96]
[1673482894237,46.1,16.275,16.261,0.96]
[1673482894558,46.1,16.275,16.26,20.0]
[1673482894878,17.0,16.271,16.26,20.0]
[1673482895486,46.1,16.275,16.26,20.0]
[1673482895707,112.3385,16.277,16.261,18.92]
[1673482895928,20.0,16.276,16.261,18.92]
[1673482896137,112.3385,16.277,16.262,20.0]
[1673482896451,46.1,16.276,16.262,20.0]
[1673482896662,46.1,16.276,16.26,20.0]
[1673482896869,20.0,16.276,16.26,20.0]
[1673482897084,46.1,16.275,16.26,20.0]
[1673482897295,66.1,16.276,16.26,20.0]
[1673482897920,66.1,16.276,16.261,1.92]
[1673482898342,46.1,16.276,16.261,1.92]
[1673482898877,46.1,16.276,16.26,20.0]
[1673482899290,46.09,16.28,16.262,19.14496728]
[1673482899603,114.4777,16.285,16.263,56.03393725]
[1673482899796,46.08,16.284,16.264,20.0]
[1673482900010,46.08,16.284,16.266,20.0]
[1673482900211,46.08,16.284,16.267,21.92]
[1673482900417,46.08,16.284,16.267,61.25451055]
[1673482900632,17.0,16.28,16.267,61.25451055]
[1673482900843,17.0,16.28,16.268,39.33451055]
[1673482901056,17.0,16.28,16.269,20.0]
[1673482901285,46.08,16.282,16.269,20.0]
[1673482901498,46.08,16.283,16.269,20.0]
[1673482901710,66.08,16.284,16.269,20.0]
[1673482901904,66.08,16.284,16.267,20.0]
[1673482902536,0.96,16.28,16.267,20.0]
[1673482902750,68.90102402,16.307,16.267,20.0]
[1673482902751,122.28311753,16.32,16.295,142.14525593]
[1673482903058,31.22249871,16.34,16.296,92.26870016]
[1673482903272,110.9314,16.326,16.297,5.64704]
[1673482903471,45.94,16.333,16.299,1.66131016]
[1673482903680,65.94,16.333,16.301,1.66131016]
[1673482903914,20.0,16.325,16.31,25.45]
[1673482904127,19.5,16.325,16.311,66.0]
[1673482904313,65.94,16.333,16.312,18.92]
[1673482904525,20.0,16.332,16.312,18.92]
[1673482904755,45.94,16.331,16.312,75.73291998]
[1673482904970,25.61,16.33,16.313,56.81291998]
[1673482905152,45.95,16.329,16.314,1.92]
[1673482905368,45.95,16.329,16.312,0.96]
[1673482905579,45.95,16.329,16.308,20.0]
[1673482905793,45.95,16.329,16.309,18.92]
[1673482906010,20.0,16.328,16.31,20.0]
[1673482906219,45.95,16.327,16.311,0.96]
[1673482906435,45.95,16.327,16.312,0.96]
[1673482906737,45.95,16.327,16.312,20.96]
[1673482906945,45.95,16.329,16.313,17.96]
[1673482907167,45.95,16.329,16.314,0.96]
[1673482907486,45.95,16.329,16.313,0.96]
[1673482907917,20.0,16.327,16.313,0.96]
[1673482908111,20.0,16.327,16.314,0.96]
[1673482908320,17.0,16.326,16.314,0.96]
[1673482908535,17.0,16.326,16.313,0.96]
[1673482908853,65.96,16.325,16.303,1.66131016]
[1673482909053,20.0,16.324,16.303,1.66131016]
[1673482909258,82.97,16.323,16.303,1.66131016]
[1673482909461,20.0,16.322,16.303,1.66131016]
[1673482909678,82.97,16.321,16.303,20.80627744]
[1673482909908,20.0,16.32,16.303,20.80627744]
[1673482910218,45.97,16.322,16.303,26.45123744]
[1673482910411,45.96,16.326,16.305,1.66131016]
[1673482910624,45.96,16.326,16.304,21.66131016]
[1673482910625,20.0,16.325,16.304,21.66131016]
[1673482910834,25.61,16.32,16.304,53.92861365]
[1673482911057,65.98,16.319,16.304,53.92861365]
[1673482911260,65.98,16.319,16.304,1.66131016]
[1673482911459,17.0,16.318,16.302,1.66131016]
[1673482912213,20.0,16.317,16.302,1.66131016]
[1673482912840,20.0,16.317,16.302,18.66131016]
[1673482913036,65.98,16.317,16.302,18.66131016]
[1673482913255,65.98,16.317,16.303,0.96]
[1673482913466,65.98,16.317,16.304,1.66131016]
[1673482913678,65.98,16.317,16.305,1.92]
[1673482913982,20.0,16.316,16.306,1.66131016]
[1673482914322,20.0,16.316,16.307,1.92]
[1673482914514,65.99,16.316,16.307,1.92]
[1673482914723,20.0,16.316,16.307,1.92]
[1673482914934,20.0,16.316,16.307,0.96]
[1673482915359,45.98,16.317,16.307,0.96]
[1673482915581,65.98,16.318,16.307,0.96]
[1673482915789,20.0,16.318,16.307,0.96]
[1673482916202,20.0,16.318,16.308,0.96]
[1673482916526,20.0,16.318,16.309,0.96]
[1673482918305,20.0,16.318,16.308,0.42]
[1673482918518,65.98,16.318,16.304,1.66131016]
[1673482918712,65.98,16.318,16.304,18.66131016]
[1673482919030,20.0,16.317,16.304,37.80627744]
[1673482919238,20.0,16.317,16.304,61.65091426]
[1673482919570,20.0,16.317,16.291,1.66131016]
[1673482919571,25.61,16.31,16.291,1.66131016]
[1673482919786,162.9721,16.309,16.281,402.97614855]
[1673482919997,20.0,16.308,16.295,47.89531348]
[1673482920310,162.9721,16.309,16.295,47.89531348]
[1673482920311,116.9621,16.309,16.295,47.89531348]
[1673482920706,116.9621,16.309,16.291,66.06]
[1673482920922,66.01,16.308,16.29,71.45]
[1673482921137,66.01,16.308,16.289,5.64982]
[1673482921344,181.2088,16.308,16.289,5.64982]
[1673482921668,161.2088,16.308,16.29,25.45]
[1673482921901,115.1988,16.308,16.291,71.70912]
[1673482922960,115.1988,16.308,16.291,25.64912]
[1673482923171,17.0,16.307,16.292,20.0]
[1673482923689,20.0,16.306,16.292,20.0]
[1673482923901,20.0,16.306,16.293,17.0]
[1673482924737,20.0,16.306,16.294,1.92]
[1673482925055,66.01,16.307,16.294,1.92]
[1673482925251,17.0,16.306,16.294,0.96]
[1673482925458,20.0,16.305,16.293,0.96]
[1673482925671,115.1988,16.308,16.294,65.19496728]
[1673482925894,115.1988,16.308,16.295,20.0]
[1673482926102,116.9621,16.309,16.295,39.14496728]
[1673482926319,20.0,16.317,16.3,127.89]
[1673482926536,20.0,16.317,16.301,71.67566]
[1673482926746,45.96,16.324,16.302,24.56531]
[1673482926945,45.96,16.324,16.303,46.02]
[1673482927139,20.0,16.325,16.31,25.43]
[1673482927354,275.7558,16.326,16.305,46.02]
[1673482927583,275.7558,16.326,16.306,38.92]
[1673482927792,275.7558,16.326,16.307,20.0]
[1673482927793,20.0,16.325,16.307,20.0]
[1673482928003,45.96,16.324,16.308,38.92]
[1673482928196,45.96,16.324,16.308,39.14496728]
[1673482928613,45.96,16.324,16.31,25.4]
[1673482928844,229.7958,16.326,16.311,20.0]
[1673482929034,229.7958,16.326,16.311,39.14496728]
[1673482929245,229.7958,16.326,16.312,19.14496728]
[1673482929460,229.7958,16.326,16.313,17.96]
[1673482929785,229.7958,16.326,16.314,0.96]
[1673482930822,18.92,16.325,16.311,20.0]
[1673482931038,18.92,16.325,16.31,20.0]
[1673482931249,229.7958,16.326,16.31,20.0]
[1673482931459,229.7958,16.326,16.31,19.14496728]
[1673482931779,45.95,16.329,16.311,20.0]
[1673482932093,20.0,16.334,16.311,20.0]
[1673482932094,45.93,16.334,16.312,70.78681728]
[1673482932308,164.6943,16.342,16.32,25.39]
[1673482932624,20.0,16.34,16.321,84.89]
[1673482932811,45.92,16.339,16.321,84.89]
[1673482933028,65.92,16.34,16.321,84.89]
[1673482933974,65.92,16.34,16.321,67.89]
[1673482933975,20.0,16.339,16.321,67.89]
[1673482934185,20.0,16.337,16.321,21.92]
[1673482935249,65.93,16.337,16.321,21.92]
[1673482935463,65.93,16.337,16.322,17.0]
[1673482935660,20.0,16.337,16.323,1.92]
[1673482935867,59.14496728,16.341,16.323,1.92]
[1673482935868,127.91,16.36,16.33,25.39]
[1673482936083,108.5282,16.348,16.331,83.9]
[1673482936290,108.5282,16.348,16.332,0.96]
[1673482936728,108.5282,16.348,16.333,0.96]
[1673482936918,108.5282,16.348,16.334,0.96]
[1673482937337,108.5282,16.348,16.335,0.96]
[1673482937758,45.88,16.352,16.335,20.10496728]
[1673482937963,154.3882,16.359,16.34,25.4]
[1673482938299,154.3882,16.359,16.341,41.06496728]
[1673482938300,108.5282,16.359,16.341,41.06496728]
[1673482938513,45.87,16.358,16.336,5.63356]
[1673482938829,85.88,16.352,16.337,17.0]
[1673482939039,20.0,16.352,16.337,17.0]
[1673482939231,45.89,16.351,16.337,17.0]
[1673482939443,20.0,16.35,16.338,19.14496728]
[1673482939649,20.0,16.35,16.339,17.0]
[1673482939854,20.0,16.35,16.34,1.92]
[1673482940285,65.89,16.351,16.34,1.92]
[1673482940492,20.0,16.351,16.34,1.92]
[1673482940697,19.5,16.351,16.34,1.92]
[1673482940909,17.0,16.35,16.337,19.14496728]
[1673482941136,1.92,16.349,16.32,119.19]
[1673482941336,45.89,16.348,16.326,19.14496728]
[1673482941546,20.0,16.346,16.326,19.14496728]
[1673482941755,45.9,16.345,16.326,19.14496728]
[1673482941973,45.9,16.345,16.32,69.88]
[1673482941974,45.89,16.348,16.32,165.16]
[1673482942183,17.96,16.347,16.321,24.78370728]
[1673482942401,45.9,16.346,16.322,51.60839]
[1673482942708,23.82,16.34,16.323,5.63805]
[1673482942923,45.92,16.339,16.323,5.63805]
[1673482943137,45.91,16.343,16.324,19.14496728]
[1673482943536,20.0,16.342,16.324,19.14496728]
[1673482943962,45.91,16.341,16.324,19.14496728]
[1673482944507,45.91,16.341,16.325,17.0]
[1673482944899,45.91,16.341,16.326,19.14496728]
[1673482945136,109.9679,16.344,16.326,19.14496728]
[1673482945347,109.9679,16.344,16.327,45.95]
[1673482945540,109.9679,16.344,16.328,20.0]
[1673482945753,109.9679,16.344,16.329,45.95]
[1673482946077,109.9679,16.344,16.328,20.0]
[1673482946266,109.9679,16.344,16.33,42.84496728]
[1673482946612,109.9679,16.344,16.332,20.0]
[1673482946798,109.9679,16.344,16.333,1.92]
[1673482947001,109.9679,16.344,16.333,18.92]
[1673482948068,109.9679,16.344,16.331,20.0]
[1673482948696,20.0,16.343,16.326,20.0]
[1673482948914,109.9679,16.344,16.327,20.0]
[1673482949224,109.9679,16.344,16.328,20.0]
[1673482949540,109.9679,16.344,16.327,19.14496728]
[1673482949541,45.91,16.343,16.327,19.14496728]
[1673482949750,45.91,16.343,16.32,23.79]
[1673482949751,20.0,16.341,16.32,23.79]
[1673482949942,177.7566,16.34,16.32,23.79]
[1673482950157,201.5766,16.34,16.315,19.14496728]
[1673482950380,0.96,16.339,16.317,45.98]
[1673482950596,0.96,16.339,16.318,20.0]
[1673482950597,45.92,16.338,16.318,20.0]
[1673482950909,17.96,16.337,16.318,20.0]
[1673482951100,20.0,16.335,16.318,20.0]
[1673482951307,137.0187,16.335,16.317,45.98]
[1673482951514,137.0187,16.335,16.316,65.98]
[1673482952489,137.0187,16.335,16.313,45.99]
[1673482952490,64.85,16.334,16.313,45.99]
[1673482952672,20.0,16.333,16.314,20.0]
[1673482953012,64.86,16.332,16.313,39.14496728]
[1673482953200,64.86,16.332,16.313,20.0]
[1673482953412,20.0,16.331,16.314,19.14496728]
[1673482953622,62.95,16.33,16.314,19.14496728]
[1673482953836,21.92,16.329,16.307,66.01]
[1673482954149,62.95,16.328,16.311,19.14496728]
[1673482954358,45.95,16.328,16.311,19.14496728]
[1673482954565,45.95,16.33,16.311,19.14496728]
[1673482954776,17.0,16.329,16.311,19.14496728]
[1673482955002,17.0,16.329,16.312,18.92]
[1673482955221,17.0,16.329,16.312,17.0]
[1673482955418,20.96,16.328,16.312,19.14496728]
[1673482955615,20.96,16.328,16.308,20.0]
[1673482955616,63.91,16.327,16.308,20.0]
[1673482955827,115.0712,16.326,16.31,38.28993456]
[1673482956036,115.0712,16.326,16.31,61.96993456]
[1673482956262,115.0712,16.326,16.311,20.0]
[1673482956484,115.0712,16.326,16.311,39.14496728]
[1673482956670,115.0712,16.326,16.312,39.14496728]
[1673482956880,115.0712,16.326,16.313,18.92]
[1673482957090,115.0712,16.326,16.313,19.14496728]
[1673482957313,20.0,16.325,16.313,19.14496728]
[1673482957838,17.0,16.324,16.313,19.14496728]
[1673482958682,115.0712,16.326,16.313,19.14496728]
[1673482958888,115.0712,16.326,16.314,18.92]
[1673482959105,115.0712,16.326,16.314,1.92]
[1673482959624,115.0712,16.326,16.314,21.06496728]
[1673482959948,115.0712,16.326,16.315,36.14496728]
[1673482960160,115.0712,16.326,16.312,20.0]
[1673482960349,20.0,16.325,16.31,20.0]
[1673482960671,65.96,16.325,16.312,19.14496728]
[1673482960885,20.0,16.324,16.312,19.14496728]
[1673482961203,20.0,16.324,16.29,403.7581096]
[1673482961204,23.82,16.32,16.299,46.03]
[1673482961413,20.0,16.318,16.299,46.03]
[1673482961619,20.0,16.318,16.291,20.0]
[1673482961620,20.0,16.316,16.298,66.04]
[1673482961827,20.0,16.316,16.299,19.14496728]
[1673482962044,155.6981,16.317,16.299,19.14496728]
[1673482962568,109.7181,16.317,16.301,20.0]
[1673482962776,45.95,16.329,16.302,46.02]
[1673482962971,118.5992,16.325,16.303,5.64496]
[1673482963192,118.5992,16.325,16.304,46.02]
[1673482963407,118.5992,16.325,16.305,24.56427]
[1673482963623,118.5992,16.325,16.306,66.01]
[1673482963832,118.5992,16.325,16.307,18.92]
[1673482964044,118.5992,16.325,16.309,20.0]
[1673482964373,118.5992,16.325,16.31,18.92]
[1673482964685,20.0,16.324,16.311,20.0]
[1673482964894,17.0,16.323,16.311,20.0]
[1673482965111,65.97,16.322,16.3,23.69]
[1673482965298,65.97,16.322,16.3,29.336]
[1673482965630,65.97,16.322,16.301,24.79062728]
[1673482965944,65.97,16.322,16.303,20.0]
[1673482966158,65.97,16.322,16.303,25.64496]
[1673482966467,65.97,16.322,16.305,20.0]
[1673482966787,45.97,16.322,16.306,18.92]
[1673482966990,118.5992,16.325,16.307,71.65358]
[1673482967201,118.5992,16.325,16.309,20.0]
[1673482967519,164.5592,16.325,16.31,18.92]
[1673482967932,20.0,16.324,16.31,1.92]
[1673482968130,65.97,16.323,16.301,66.03]
[1673482968465,20.96,16.322,16.3,23.69]
[1673482968664,65.97,16.321,16.3,23.69]
[1673482968878,65.97,16.321,16.303,19.14496728]
[1673482969306,20.0,16.321,16.304,5.64462]
[1673482969503,20.0,16.322,16.304,5.64462]
[1673482969714,20.0,16.322,16.305,19.14496728]
[1673482969715,45.97,16.321,16.305,19.14496728]
[1673482969925,45.97,16.321,16.303,46.02]
[1673482970141,45.97,16.321,16.301,19.14496728]
[1673482970470,37.96,16.32,16.3,24.05]
[1673482970774,66.94,16.319,16.296,46.04]
[1673482970982,17.0,16.318,16.292,46.05]
[1673482971199,65.98,16.317,16.29,23.65]
[1673482971389,37.0,16.316,16.29,23.65]
[1673482971594,179.8985,16.315,16.29,23.65]
[1673482971808,17.0,16.314,16.291,19.14496728]
[1673482972018,85.99,16.313,16.291,19.14496728]
[1673482972247,45.99,16.313,16.292,20.0]
[1673482972446,45.99,16.314,16.293,51.69843]
[1673482972656,45.99,16.314,16.293,70.84339728]
[1673482972657,20.0,16.312,16.293,70.84339728]
[1673482972865,17.0,16.311,16.293,51.69843]
[1673482973280,17.0,16.311,16.294,21.92]
[1673482974472,17.0,16.311,16.288,46.06]
[1673482974473,70.78,16.31,16.288,46.06]
[1673482974651,70.78,16.31,16.285,46.07]
[1673482974652,17.0,16.309,16.285,46.07]
[1673482974854,46.97,16.308,16.283,46.08]
[1673482975060,46.97,16.308,16.282,46.08]
[1673482975276,17.0,16.307,16.281,46.08]
[1673482975503,23.82,16.3,16.281,46.08]
[1673482975709,183.9132,16.299,16.275,46.1]
[1673482975918,183.9132,16.299,16.274,46.1]
[1673482976124,20.96,16.298,16.274,46.1]
[1673482976334,17.0,16.297,16.275,19.14496728]
[1673482976543,0.96,16.296,16.276,46.1]
[1673482977081,46.04,16.295,16.277,19.14496728]
[1673482977291,17.0,16.294,16.277,19.14496728]
[1673482977486,46.04,16.296,16.277,19.14496728]
[1673482977813,63.04,16.297,16.277,19.14496728]
[1673482978004,63.04,16.297,16.278,46.09]
[1673482978242,20.0,16.296,16.278,46.09]
[1673482978456,17.0,16.295,16.279,19.14496728]
[1673482978773,17.0,16.295,16.274,46.1]
[1673482978991,17.0,16.295,16.279,19.14496728]
[1673482979210,17.0,16.295,16.274,46.1]
[1673482979424,17.0,16.295,16.276,20.0]
[1673482979732,46.04,16.297,16.277,85.24496728]
[1673482980250,20.0,16.296,16.278,19.14496728]
[1673482980468,20.0,16.296,16.279,20.0]
[1673482980863,17.0,16.295,16.28,19.14496728]
[1673482981199,17.0,16.295,16.281,20.0]
[1673482981511,1.92,16.294,16.281,20.0]
[1673482981703,63.04,16.295,16.281,20.0]
[1673482981918,17.0,16.295,16.28,19.14496728]